[Event "MČR juniorů a juniorek v rapid šachu 2023"]
[Site "Czech Republic"]
[Date "2023.09.24"]
[Round "7.7"]
[White "Dobsa, Emma"]
[Black "Slaby, Matej"]
[Result "0-1"]
[TimeControl "20 min + 5 sec per move"]
[WhiteFideId "23709391"]
[BlackFideId "23734876"]
[WhiteElo "1480"]
[BlackElo "1922"]

1. e4 {[%clk 00:20:09]} d5 {[%clk 00:20:09]} 2. Nf3 {[%clk 00:20:12]} {[%emt
00:00:03]} dxe4 {[%clk 00:20:10]} {[%emt 00:00:04]} 3. Ne5 {[%clk 00:20:12]}
{[%emt 00:00:04]} Nf6 {[%clk 00:19:01]} {[%emt 00:01:14]} 4. Bc4 {[%clk
00:19:10]} {[%emt 00:01:07]} e6 {[%clk 00:19:05]} {[%emt 00:00:02]} 5. d4
{[%clk 00:18:56]} {[%emt 00:00:18]} exd3 {[%clk 00:18:52]} {[%emt 00:00:19]} 6.
Nxd3 {[%clk 00:18:59]} {[%emt 00:00:01]} Be7 {[%clk 00:18:47]} {[%emt
00:00:12]} 7. Nc3 {[%clk 00:18:46]} {[%emt 00:00:18]} O-O {[%clk 00:18:46]}
{[%emt 00:00:06]} 8. Bf4 {[%clk 00:18:46]} {[%emt 00:00:03]} a6 {[%clk
00:18:21]} {[%emt 00:00:31]} 9. O-O {[%clk 00:18:43]} {[%emt 00:00:08]} Nc6
{[%clk 00:17:52]} {[%emt 00:00:34]} 10. Re1 {[%clk 00:18:12]} {[%emt 00:00:35]}
b5 {[%clk 00:17:39]} {[%emt 00:00:19]} 11. Bb3 {[%clk 00:18:07]} {[%emt
00:00:10]} Bb7 {[%clk 00:17:27]} {[%emt 00:00:17]} 12. a3 {[%clk 00:17:42]}
{[%emt 00:00:30]} Nd4 {[%clk 00:16:43]} {[%emt 00:00:48]} 13. Ba2 {[%clk
00:17:25]} {[%emt 00:00:23]} c5 {[%clk 00:16:47]} 14. Ne2 {[%clk 00:16:31]}
{[%emt 00:00:59]} Nxe2+ {[%clk 00:15:54]} {[%emt 00:00:58]} 15. Qxe2 {[%clk
00:16:34]} {[%emt 00:00:02]} Qb6 {[%clk 00:15:53]} {[%emt 00:00:06]} 16. Be3
{[%clk 00:16:03]} {[%emt 00:00:36]} Qc6 {[%clk 00:14:47]} {[%emt 00:01:11]} 17.
f3 {[%clk 00:16:04]} {[%emt 00:00:03]} c4 {[%clk 00:14:44]} {[%emt 00:00:09]}
18. Ne5 {[%clk 00:16:06]} {[%emt 00:00:03]} Qc7 {[%clk 00:14:47]} {[%emt
00:00:02]} 19. Bf4 {[%clk 00:16:01]} {[%emt 00:00:10]} Bd6 {[%clk 00:13:04]}
{[%emt 00:01:48]} 20. Rad1 {[%clk 00:15:37]} {[%emt 00:00:28]} Nd5 {[%clk
00:12:54]} {[%emt 00:00:16]} 21. Bg3 {[%clk 00:15:25]} {[%emt 00:00:17]} c3
{[%clk 00:11:57]} {[%emt 00:01:03]} 22. b4 {[%clk 00:14:56]} {[%emt 00:00:34]}
Rfd8 {[%clk 00:11:50]} {[%emt 00:00:13]} 23. Rd4 {[%clk 00:11:51]} {[%emt
00:03:09]} a5 {[%clk 00:07:35]} {[%emt 00:04:19]} 24. Bxd5 {[%clk 00:07:58]}
{[%emt 00:03:59]} Bxd5 {[%clk 00:07:36]} {[%emt 00:00:04]} 25. Qxb5 {[%clk
00:07:06]} {[%emt 00:00:57]} axb4 {[%clk 00:07:33]} {[%emt 00:00:09]} 26. axb4
{[%clk 00:07:09]} Ra2 {[%clk 00:06:09]} {[%emt 00:01:27]} 27. Qd3 {[%clk
00:01:36]} {[%emt 00:05:40]} Qb7 {[%clk 00:04:27]} {[%emt 00:01:47]} 28. Rb1
{[%clk 00:01:15]} {[%emt 00:00:25]} Rb2 {[%clk 00:03:50]} {[%emt 00:00:43]} 29.
Rd1 {[%clk 00:00:34]} {[%emt 00:00:46]} Rxb4 {[%clk 00:03:01]} {[%emt
00:00:55]} 30. Qxc3 {[%clk 00:00:20]} {[%emt 00:00:19]} Rc8 {[%clk 00:02:54]}
{[%emt 00:00:11]} 31. Rxb4 {[%clk 00:00:18]} {[%emt 00:00:07]} Bxb4 {[%clk
00:02:58]} 32. Qd3 {[%clk 00:00:20]} {[%emt 00:00:02]} Rc3 {[%clk 00:02:26]}
{[%emt 00:00:37]} 33. Qe2 {[%clk 00:00:17]} {[%emt 00:00:08]} Qc8 {[%clk
00:02:11]} {[%emt 00:00:21]} 34. Nd3 {[%clk 00:00:20]} {[%emt 00:00:02]} Rxc2
{[%clk 00:02:05]} {[%emt 00:00:11]} 35. Qe5 {[%clk 00:00:23]} {[%emt 00:00:02]}
Bc3 {[%clk 00:01:35]} {[%emt 00:00:35]} 36. Qf4 {[%clk 00:00:24]} {[%emt
00:00:04]} Bf6 {[%clk 00:01:05]} {[%emt 00:00:35]} 37. Rb1 {[%clk 00:00:27]}
{[%emt 00:00:02]} Qd8 {[%clk 00:00:33]} {[%emt 00:00:37]} 38. Rb8 {[%clk
00:00:30]} Rc8 {[%clk 00:00:37]} {[%emt 00:00:02]} 39. Rb1 {[%clk 00:00:31]}
{[%emt 00:00:04]} Ba2 {[%clk 00:00:33]} {[%emt 00:00:09]} 40. Rd1 {[%clk
00:00:26]} {[%emt 00:00:09]} Bb3 {[%clk 00:00:35]} {[%emt 00:00:04]} 41. Rc1
{[%clk 00:00:27]} {[%emt 00:00:05]} Rxc1+ {[%clk 00:00:36]} {[%emt 00:00:03]}
42. Nxc1 {[%clk 00:00:28]} {[%emt 00:00:04]} Qd1+ {[%clk 00:00:36]} {[%emt
00:00:05]} 43. Kf2 {[%clk 00:00:32]} {[%emt 00:00:01]} Bd4+ {[%clk 00:00:38]}
{[%emt 00:00:03]} 0-1

[Event "MČR juniorů a juniorek v rapid šachu 2023"]
[Site "Czech Republic"]
[Date "2023.09.24"]
[Round "7.8"]
[White "Zadrapa, Jakub"]
[Black "Sulc, Jakub"]
[Result "0-1"]
[TimeControl "20 min + 5 sec per move"]
[WhiteFideId "23714778"]
[BlackFideId "394050"]
[WhiteElo "1696"]
[BlackElo "1920"]

1. e4 {[%clk 00:20:08]} e6 {[%clk 00:20:09]} {[%emt 00:00:02]} 2. d4 {[%clk
00:20:12]} d5 {[%clk 00:20:13]} 3. Nd2 {[%clk 00:20:16]} Nf6 {[%clk 00:20:17]}
4. e5 {[%clk 00:20:20]} {[%emt 00:00:01]} Nfd7 {[%clk 00:20:21]} 5. Bd3 {[%clk
00:20:23]} {[%emt 00:00:02]} c5 {[%clk 00:20:25]} 6. c3 {[%clk 00:20:27]} Nc6
{[%clk 00:20:29]} 7. Ne2 {[%clk 00:20:30]} {[%emt 00:00:02]} cxd4 {[%clk
00:20:31]} {[%emt 00:00:02]} 8. cxd4 {[%clk 00:20:34]} {[%emt 00:00:02]} f6
{[%clk 00:20:35]} 9. Nf4 {[%clk 00:19:33]} {[%emt 00:01:06]} Nxd4 {[%clk
00:20:36]} {[%emt 00:00:04]} 10. Qh5+ {[%clk 00:19:35]} {[%emt 00:00:03]} Ke7
{[%clk 00:20:40]} 11. Ng6+ {[%clk 00:19:22]} {[%emt 00:00:19]} hxg6 {[%clk
00:20:43]} {[%emt 00:00:02]} 12. exf6+ {[%clk 00:19:26]} {[%emt 00:00:01]} Nxf6
{[%clk 00:10:57]} {[%emt 00:09:51]} 13. Qxh8 {[%clk 00:19:26]} {[%emt
00:00:06]} Kf7 {[%clk 00:11:01]} 14. O-O {[%clk 00:19:15]} {[%emt 00:00:15]} e5
{[%clk 00:11:03]} {[%emt 00:00:03]} 15. Nb3 {[%clk 00:19:13]} {[%emt 00:00:07]}
Nxb3 {[%clk 00:08:39]} {[%emt 00:02:29]} 16. axb3 {[%clk 00:19:17]} {[%emt
00:00:02]} e4 {[%clk 00:08:42]} 17. Be2 {[%clk 00:18:53]} {[%emt 00:00:29]} Be6
{[%clk 00:06:50]} {[%emt 00:01:57]} 18. Bg5 {[%clk 00:18:30]} {[%emt 00:00:28]}
Qb6 {[%clk 00:05:29]} {[%emt 00:01:25]} 19. Bxf6 {[%clk 00:17:07]} {[%emt
00:01:29]} gxf6 {[%clk 00:05:32]} {[%emt 00:00:02]} 20. Rac1 {[%clk 00:16:13]}
{[%emt 00:00:59]} Rd8 {[%clk 00:02:26]} {[%emt 00:03:11]} 21. Qh4 {[%clk
00:14:40]} {[%emt 00:01:38]} Kg7 {[%clk 00:01:20]} {[%emt 00:01:10]} 22. Qg3
{[%clk 00:10:29]} {[%emt 00:04:17]} Bc5 {[%clk 00:00:12]} {[%emt 00:01:13]} 23.
b4 {[%clk 00:03:12]} {[%emt 00:07:22]} Bxb4 {[%clk 00:00:12]} {[%emt 00:00:06]}
24. Rc7+ {[%clk 00:03:01]} {[%emt 00:00:15]} Rd7 {[%clk 00:00:15]} {[%emt
00:00:02]} 25. Rxd7+ {[%clk 00:03:04]} {[%emt 00:00:01]} Bxd7 {[%clk 00:00:20]}
26. Rc1 {[%clk 00:02:43]} {[%emt 00:00:27]} Bc5 {[%clk 00:00:11]} {[%emt
00:00:13]} 27. Qc3 {[%clk 00:01:12]} {[%emt 00:01:36]} Bxf2+ {[%clk 00:00:15]}
{[%emt 00:00:02]} 28. Kh1 {[%clk 00:01:14]} {[%emt 00:00:02]} Be3 {[%clk
00:00:18]} {[%emt 00:00:02]} 29. Rc2 {[%clk 00:00:20]} {[%emt 00:00:59]} Bf4
{[%clk 00:00:20]} {[%emt 00:00:03]} 30. Qc5 {[%clk 00:00:12]} {[%emt 00:00:13]}
Qxc5 {[%clk 00:00:19]} {[%emt 00:00:07]} 31. Rxc5 {[%clk 00:00:15]} Be6 {[%clk
00:00:21]} {[%emt 00:00:03]} 32. g3 {[%clk 00:00:14]} {[%emt 00:00:06]} Be3
{[%clk 00:00:17]} {[%emt 00:00:08]} 33. Rc7+ {[%clk 00:00:18]} {[%emt
00:00:01]} Kh6 {[%clk 00:00:21]} {[%emt 00:00:02]} 34. Rxb7 {[%clk 00:00:22]}
{[%emt 00:00:01]} d4 {[%clk 00:00:22]} 35. Bd1 {[%clk 00:00:15]} {[%emt
00:00:16]} f5 {[%clk 00:00:09]} 36. Rxa7 {[%clk 00:00:18]} {[%emt 00:00:20]} d3
{[%clk 00:00:13]} 37. Ra6 {[%clk 00:00:19]} {[%emt 00:00:04]} Bg8 {[%clk
00:00:08]} {[%emt 00:00:09]} 38. b4 {[%clk 00:00:11]} {[%emt 00:00:14]} Bc4
{[%emt 00:00:08]} 39. Ra1 {[%clk 00:00:08]} {[%emt 00:00:07]} Bd4 {[%clk
00:00:10]} {[%emt 00:00:02]} 40. Rb1 {[%clk 00:00:12]} Bb5 {[%clk 00:00:14]} 41.
Kg2 {[%clk 00:00:14]} {[%emt 00:00:03]} e3 {[%clk 00:00:18]} 42. Kf3 {[%clk
00:00:16]} {[%emt 00:00:03]} Bc6+ {[%clk 00:00:22]} 43. Kf4 {[%clk 00:00:17]}
{[%emt 00:00:04]} Be4 {[%clk 00:00:26]} {[%emt 00:00:01]} 44. b5 {[%clk
00:00:19]} {[%emt 00:00:03]} g5# {[%clk 00:00:30]} 0-1

[Event "MČR juniorů a juniorek v rapid šachu 2023"]
[Site "Czech Republic"]
[Date "2023.09.24"]
[Round "7.9"]
[White "Vilimek, Vit"]
[Black "Rybacek, Martin"]
[Result "1-0"]
[TimeControl "20 min + 5 sec per move"]
[WhiteFideId "23718218"]
[BlackFideId "23739266"]
[WhiteElo "1898"]
[BlackElo "1755"]

1. e4 {[%clk 00:20:09]} c6 {[%clk 00:20:09]} 2. d3 {[%clk 00:20:06]} {[%emt
00:00:07]} d5 {[%clk 00:20:09]} {[%emt 00:00:06]} 3. Nd2 {[%clk 00:20:10]}
{[%emt 00:00:01]} e5 {[%clk 00:19:35]} {[%emt 00:00:39]} 4. g3 {[%emt
00:00:20]} Nf6 {[%clk 00:19:12]} {[%emt 00:00:12]} 5. Bg2 {[%emt 00:00:58]} Bd6
6. b3 {[%clk 00:20:00]} {[%emt 00:00:05]} O-O {[%clk 00:17:53]} {[%emt
00:00:47]} 7. Bb2 {[%clk 00:20:04]} Bg4 {[%clk 00:17:40]} {[%emt 00:00:17]} 8.
Ngf3 {[%clk 00:19:52]} {[%emt 00:00:17]} Nbd7 {[%clk 00:17:05]} {[%emt
00:00:40]} 9. O-O {[%clk 00:19:54]} {[%emt 00:00:03]} Qc7 {[%clk 00:15:53]}
{[%emt 00:01:18]} 10. h3 {[%clk 00:18:52]} {[%emt 00:01:06]} Be6 {[%clk
00:15:56]} {[%emt 00:00:02]} 11. Qe2 {[%clk 00:18:37]} {[%emt 00:00:21]} Rfe8
{[%clk 00:15:01]} {[%emt 00:01:00]} 12. Rae1 {[%clk 00:18:40]} {[%emt
00:00:02]} d4 {[%clk 00:13:30]} {[%emt 00:01:36]} 13. Nh4 {[%clk 00:16:39]}
{[%emt 00:02:05]} g6 {[%clk 00:12:12]} {[%emt 00:01:24]} 14. Bc1 {[%clk
00:16:42]} {[%emt 00:00:02]} a5 {[%clk 00:11:26]} {[%emt 00:00:52]} 15. Nc4
{[%clk 00:16:04]} {[%emt 00:00:42]} Bb4 {[%clk 00:11:17]} {[%emt 00:00:14]} 16.
Bd2 {[%clk 00:15:56]} {[%emt 00:00:12]} b5 {[%clk 00:11:04]} {[%emt 00:00:19]}
17. Nb2 {[%clk 00:15:47]} {[%emt 00:00:13]} Ba3 {[%clk 00:10:37]} {[%emt
00:00:33]} 18. Nd1 {[%clk 00:15:48]} {[%emt 00:00:04]} a4 {[%clk 00:10:29]}
{[%emt 00:00:14]} 19. f4 {[%clk 00:15:52]} axb3 {[%clk 00:09:28]} {[%emt
00:01:05]} 20. axb3 {[%clk 00:15:50]} {[%emt 00:00:07]} Nh5 {[%clk 00:07:42]}
{[%emt 00:01:51]} 21. Qf3 {[%clk 00:15:02]} {[%emt 00:00:53]} exf4 {[%emt
00:01:48]} 22. gxf4 {[%clk 00:12:49]} {[%emt 00:01:45]} Be7 {[%clk 00:06:23]}
{[%emt 00:00:14]} 23. Nf5 {[%clk 00:12:52]} {[%emt 00:00:02]} Bxf5 {[%clk
00:06:09]} {[%emt 00:00:19]} 24. exf5 {[%clk 00:12:55]} {[%emt 00:00:02]} Bh4
{[%clk 00:06:06]} {[%emt 00:00:08]} 25. Rxe8+ {[%clk 00:12:01]} Rxe8 {[%clk
00:06:10]} {[%emt 00:01:00]} 26. Qxc6 {[%clk 00:11:59]} Qd8 {[%emt 00:01:57]}
27. fxg6 {[%clk 00:11:26]} hxg6 {[%clk 00:04:37]} {[%emt 00:00:30]} 28. Nf2
{[%clk 00:09:06]} {[%emt 00:02:25]} Ng3 {[%clk 00:03:47]} {[%emt 00:00:55]} 29.
Ne4 {[%clk 00:05:12]} {[%emt 00:03:59]} Nxf1 {[%clk 00:03:31]} {[%emt
00:00:21]} 30. Kxf1 {[%clk 00:05:15]} {[%emt 00:00:02]} Nf6 {[%clk 00:02:23]}
{[%emt 00:01:13]} 31. Be1 {[%clk 00:02:57]} {[%emt 00:02:22]} Nxe4 {[%clk
00:01:48]} {[%emt 00:00:41]} 32. Bxh4 {[%clk 00:02:53]} {[%emt 00:00:09]} Nd2+
{[%clk 00:01:52]} 33. Kg1 {[%clk 00:02:57]} Qb8 {[%clk 00:01:21]} {[%emt
00:00:36]} 34. Bd5 {[%clk 00:02:25]} {[%emt 00:00:36]} Kh7 {[%clk 00:00:00]}
{[%emt 00:01:26]} 1-0

[Event "MČR juniorů a juniorek v rapid šachu 2023"]
[Site "Czech Republic"]
[Date "2023.09.24"]
[Round "7.10"]
[White "Nagy, Ladislav"]
[Black "Strnadova, Monika"]
[Result "1/2-1/2"]
[TimeControl "20 min + 5 sec per move"]
[WhiteFideId "374300"]
[BlackFideId "23701668"]
[WhiteElo "2089"]
[BlackElo "1728"]

1. e4 {[%clk 00:20:07]} {[%emt 00:00:02]} c5 {[%clk 00:20:09]} {[%emt
00:00:01]} 2. Nf3 {[%clk 00:20:09]} {[%emt 00:00:04]} Nc6 {[%clk 00:20:13]}
{[%emt 00:00:01]} 3. d4 {[%clk 00:20:08]} {[%emt 00:00:06]} cxd4 {[%clk
00:20:16]} {[%emt 00:00:02]} 4. Nxd4 {[%clk 00:20:11]} {[%emt 00:00:01]} g6
{[%clk 00:20:20]} 5. c4 {[%clk 00:20:11]} {[%emt 00:00:06]} Bg7 {[%clk
00:20:23]} {[%emt 00:00:02]} 6. Be3 {[%clk 00:20:14]} {[%emt 00:00:02]} Nf6
{[%clk 00:20:26]} {[%emt 00:00:02]} 7. Nc3 {[%clk 00:20:16]} {[%emt 00:00:02]}
Ng4 {[%clk 00:20:27]} {[%emt 00:00:04]} 8. Qxg4 {[%clk 00:20:16]} {[%emt
00:00:05]} Nxd4 {[%clk 00:20:30]} {[%emt 00:00:03]} 9. Qd1 {[%clk 00:20:14]}
{[%emt 00:00:07]} e5 {[%clk 00:20:28]} {[%emt 00:00:08]} 10. Bd3 {[%clk
00:18:46]} {[%emt 00:01:32]} O-O {[%clk 00:20:27]} {[%emt 00:00:06]} 11. O-O
{[%clk 00:18:08]} {[%emt 00:00:43]} d6 {[%clk 00:20:29]} {[%emt 00:00:03]} 12.
Rc1 {[%clk 00:16:02]} {[%emt 00:02:10]} f5 {[%clk 00:20:19]} {[%emt 00:00:15]}
13. exf5 {[%clk 00:15:16]} {[%emt 00:00:52]} Bxf5 {[%clk 00:20:21]} {[%emt
00:00:03]} 14. Bxf5 {[%clk 00:15:04]} {[%emt 00:00:17]} Rxf5 {[%clk 00:20:22]}
{[%emt 00:00:04]} 15. Bxd4 {[%clk 00:14:48]} {[%emt 00:00:20]} exd4 {[%clk
00:20:23]} {[%emt 00:00:04]} 16. Nd5 {[%clk 00:14:24]} {[%emt 00:00:30]} Kh8
{[%clk 00:17:57]} {[%emt 00:02:31]} 17. Qd3 {[%clk 00:13:49]} {[%emt 00:00:39]}
Rc8 {[%clk 00:15:03]} {[%emt 00:02:59]} 18. Rce1 {[%clk 00:12:12]} {[%emt
00:01:42]} Re5 {[%clk 00:14:48]} {[%emt 00:00:21]} 19. f4 {[%clk 00:07:57]}
{[%emt 00:04:20]} Re8 {[%clk 00:14:31]} {[%emt 00:00:21]} 20. Rxe8+ {[%clk
00:07:25]} {[%emt 00:00:38]} Qxe8 {[%clk 00:14:33]} {[%emt 00:00:03]} 21. b3
{[%clk 00:07:19]} {[%emt 00:00:12]} Qe6 {[%clk 00:12:58]} {[%emt 00:01:38]} 22.
f5 {[%clk 00:04:32]} {[%emt 00:02:53]} gxf5 {[%clk 00:13:01]} {[%emt 00:00:03]}
23. Qxf5 {[%clk 00:04:04]} {[%emt 00:00:32]} Qxf5 {[%clk 00:12:30]} {[%emt
00:00:36]} 24. Rxf5 {[%clk 00:04:09]} Re8 {[%clk 00:11:25]} {[%emt 00:01:11]}
25. Rf3 {[%clk 00:03:43]} {[%emt 00:00:30]} Re2 {[%clk 00:10:55]} {[%emt
00:00:35]} 26. a4 {[%clk 00:03:31]} {[%emt 00:00:18]} Be5 {[%clk 00:10:02]}
{[%emt 00:00:58]} 27. Rd3 {[%clk 00:02:38]} {[%emt 00:00:58]} Kg7 {[%clk
00:09:00]} {[%emt 00:01:07]} 28. g3 {[%clk 00:01:26]} {[%emt 00:01:17]} Rc2
{[%clk 00:07:26]} {[%emt 00:01:39]} 29. Nb4 {[%clk 00:01:07]} {[%emt 00:00:24]}
Rc3 {[%clk 00:07:11]} {[%emt 00:00:20]} 30. Rxc3 {[%clk 00:01:08]} {[%emt
00:00:04]} dxc3 {[%clk 00:07:14]} {[%emt 00:00:01]} 31. Kf2 {[%clk 00:01:00]}
{[%emt 00:00:13]} Kg6 {[%clk 00:07:07]} {[%emt 00:00:12]} 32. Ke3 {[%clk
00:00:31]} {[%emt 00:00:35]} Kf5 {[%clk 00:06:41]} {[%emt 00:00:31]} 33. Nd3
{[%clk 00:00:23]} {[%emt 00:00:14]} Kg4 {[%clk 00:05:28]} {[%emt 00:01:18]} 34.
Nf2+ {[%clk 00:00:20]} {[%emt 00:00:07]} Kf5 {[%clk 00:04:59]} {[%emt
00:00:34]} 35. Kd3 {[%clk 00:00:25]} h5 {[%clk 00:04:45]} {[%emt 00:00:20]} 36.
b4 {[%clk 00:00:24]} {[%emt 00:00:06]} h4 {[%clk 00:03:30]} {[%emt 00:01:20]}
37. gxh4 {[%clk 00:00:28]} {[%emt 00:00:01]} Bxh2 {[%clk 00:03:16]} {[%emt
00:00:20]} 38. Nd1 {[%clk 00:00:32]} Kg4 {[%clk 00:03:00]} {[%emt 00:00:21]} 39.
Nxc3 {[%clk 00:00:35]} {[%emt 00:00:02]} Kxh4 {[%clk 00:03:04]} 40. Ke4 {[%clk
00:00:36]} {[%emt 00:00:04]} Kg5 {[%clk 00:02:56]} {[%emt 00:00:13]} 41. Kd5
{[%clk 00:00:32]} {[%emt 00:00:09]} Kf6 {[%clk 00:02:59]} {[%emt 00:00:02]} 42.
Nb5 {[%clk 00:00:36]} a5 {[%clk 00:02:40]} {[%emt 00:00:24]} 43. bxa5 {[%clk
00:00:31]} {[%emt 00:00:10]} Ke7 {[%clk 00:02:44]} 44. Nc7 {[%clk 00:00:27]}
{[%emt 00:00:09]} Kd7 {[%clk 00:02:35]} {[%emt 00:00:14]} 45. a6 {[%clk
00:00:22]} {[%emt 00:00:10]} bxa6 {[%clk 00:02:40]} 46. Nxa6 {[%clk 00:00:26]}
{[%emt 00:00:01]} Kc8 {[%clk 00:02:23]} {[%emt 00:00:20]} 47. Kc6 {[%clk
00:00:29]} {[%emt 00:00:03]} Be5 {[%clk 00:02:13]} {[%emt 00:00:16]} 48. Nb4
{[%clk 00:00:32]} {[%emt 00:00:02]} Kb8 {[%clk 00:02:15]} {[%emt 00:00:03]} 49.
Nd3 {[%clk 00:00:30]} {[%emt 00:00:06]} Bh2 {[%clk 00:02:11]} {[%emt 00:00:10]}
50. Nf2 {[%clk 00:00:29]} {[%emt 00:00:06]} Ka7 {[%clk 00:02:07]} {[%emt
00:00:09]} 51. Ne4 {[%clk 00:00:24]} {[%emt 00:00:10]} Ka6 {[%clk 00:01:56]}
{[%emt 00:00:16]} 52. Nxd6 {[%clk 00:00:27]} {[%emt 00:00:02]} Ka5 {[%clk
00:01:57]} {[%emt 00:00:05]} 53. c5 {[%clk 00:00:30]} {[%emt 00:00:02]} Bg1
{[%clk 00:01:52]} {[%emt 00:00:09]} 54. Kd5 {[%clk 00:00:25]} {[%emt 00:00:10]}
Bxc5 {[%clk 00:01:53]} {[%emt 00:00:04]} 55. Kxc5 {[%clk 00:00:27]} {[%emt
00:00:03]} Kxa4 1/2-1/2